bitfinex/quotes_BTCUSD_20250328
["timestamp","ask_amount","ask_price","bid_price","bid_amount"]
[1743170475155,0.176113,85109.0,85108.0,0.002]
[1743170475348,0.14052576,85109.0,85108.0,0.002]
[1743170475562,0.137673,85109.0,85108.0,0.002]
[1743170476052,0.137673,85109.0,85107.0,0.234996]
[1743170476252,0.137673,85109.0,85108.0,0.002]
[1743170477465,0.372665,85109.0,85108.0,0.002]
[1743170477766,0.49867164,85109.0,85108.0,0.002]
[1743170478182,0.48692264,85109.0,85108.0,0.002]
[1743170478504,0.011749,85107.0,85098.0,0.246773]
[1743170478710,0.01175,85104.0,85097.0,0.246775]
[1743170478904,0.01175,85104.0,85093.0,0.00078235]
[1743170478905,0.235032,85095.0,85093.0,0.00078235]
[1743170479292,0.011751,85098.0,85093.0,0.23581635]
[1743170479545,0.235034,85095.0,85093.0,0.00078235]
[1743170479729,0.4288614,85094.0,85093.0,0.00078235]
[1743170479971,0.42600864,85094.0,85093.0,0.00078235]
[1743170482053,0.42600864,85094.0,85093.0,0.00378235]
[1743170482285,0.42600864,85094.0,85093.0,0.00578235]
[1743170482485,0.42600864,85094.0,85093.0,0.00278235]
[1743170482732,0.97250713,85094.0,85093.0,0.00278235]
[1743170482938,0.97250713,85094.0,85053.0,0.00012913]
[1743170482939,0.025,85070.0,85053.0,0.00012913]
[1743170483146,0.75377649,85062.0,85053.0,0.00012913]
[1743170483347,0.73923564,85062.0,85061.0,0.00213309]
[1743170483754,0.85349328,85062.0,85061.0,0.00213309]
[1743170483895,0.86803413,85062.0,85061.0,0.00213309]
[1743170484093,0.75377649,85062.0,85061.0,0.00213309]
[1743170485182,0.7656493,85062.0,85061.0,0.00213309]
[1743170486379,0.67600845,85062.0,85061.0,0.00213309]
[1743170486609,0.67900845,85062.0,85061.0,0.00213309]
[1743170486818,0.006,85062.0,85061.0,0.00213309]
[1743170487027,0.006,85062.0,85061.0,0.01388909]
[1743170487859,0.003,85062.0,85061.0,0.15564909]
[1743170488273,0.011755,85067.0,85062.0,0.235122]
[1743170488426,0.235106,85068.0,85065.0,0.235113]
[1743170488634,0.59982065,85071.0,85067.0,0.235107]
[1743170489038,0.36472065,85071.0,85069.0,0.235101]
[1743170489205,0.23509,85074.0,85069.0,0.235101]
[1743170489400,0.246844,85074.0,85069.0,0.235101]
[1743170489616,0.235097,85071.0,85068.0,0.24686]
[1743170489816,0.246844,85074.0,85070.0,0.235099]
[1743170490130,0.3,85076.0,85072.0,0.246848]
[1743170490331,0.005,85107.0,85072.0,0.246848]
[1743170490332,0.0009882,85080.0,85079.0,0.246828]
[1743170490574,0.36472065,85100.0,85076.0,0.246835]
[1743170490575,0.02370225,85096.0,85076.0,0.246835]
[1743170490824,0.235065,85083.0,85078.0,0.235077]
[1743170491104,0.246809,85086.0,85078.0,0.011753]
[1743170491304,0.11425764,85085.0,85082.0,0.235064]
[1743170491502,0.11425764,85085.0,85078.0,0.24683]
[1743170491503,0.011753,85083.0,85078.0,0.011753]
[1743170491733,0.235115,85065.0,85061.0,0.01388909]
[1743170491841,0.36472065,85071.0,85069.0,0.235102]
[1743170492044,0.011753,85079.0,85073.0,0.246844]
[1743170492351,0.11425764,85078.0,85076.0,0.235083]
[1743170492523,0.002,85080.0,85076.0,0.235083]
[1743170492752,0.246847,85073.0,85070.0,0.2351]
[1743170492973,0.235082,85077.0,85072.0,0.235092]
[1743170493194,0.011753,85081.0,85074.0,0.011754]
[1743170493399,0.011754,85074.0,85070.0,0.14172]
[1743170493694,0.00285276,85073.0,85070.0,0.14172]
[1743170493929,0.011754,85071.0,85070.0,0.14172]
[1743170494134,0.3231959,85079.0,85073.0,0.011754]
[1743170494343,0.3231959,85079.0,85077.0,0.23508]
[1743170494487,0.0231959,85079.0,85077.0,0.23508]
[1743170494887,0.0231959,85079.0,85078.0,0.235078]
[1743170495298,0.2360399,85087.0,85086.0,0.235056]
[1743170495299,0.0009849,85087.0,85086.0,0.235056]
[1743170495635,0.0009849,85087.0,85086.0,0.14196]
[1743170495874,0.011752,85090.0,85086.0,0.14196]
[1743170495992,0.23505,85089.0,85086.0,0.377014]
[1743170496188,0.32361982,85093.0,85091.0,0.235042]
[1743170496414,0.33537082,85093.0,85086.0,0.14196]
[1743170496636,0.246804,85088.0,85086.0,0.14196]
[1743170496816,0.32361982,85093.0,85086.0,0.14296]
[1743170497026,0.02361982,85093.0,85086.0,0.14296]
[1743170497350,0.02361982,85093.0,85086.0,0.376816]
[1743170497351,0.3,85089.0,85086.0,0.376816]
[1743170497569,0.3,85089.0,85086.0,0.15364509]
[1743170497894,0.3,85089.0,85086.0,0.14189309]
[1743170498023,0.001,85093.0,85086.0,0.14189309]
[1743170498631,0.001,85093.0,85087.0,0.235053]
[1743170498836,0.001,85093.0,85092.0,0.24679]
[1743170499061,0.001,85093.0,85092.0,0.235039]
[1743170499262,0.002,85093.0,85091.0,0.23504]
[1743170499522,0.003,85093.0,85092.0,0.11425764]
[1743170499667,0.002,85093.0,85092.0,0.11425764]
[1743170500029,0.0003384,85109.0,85092.0,0.11425764]
[1743170500186,0.0003384,85109.0,85093.0,0.11425764]
[1743170500552,0.011749,85108.0,85086.0,0.00013309]
[1743170500758,0.0003384,85109.0,85092.0,0.002]
[1743170500958,0.011751,85097.0,85092.0,0.002]
[1743170501175,0.011751,85093.0,85092.0,0.002]
[1743170501755,0.68509785,85093.0,85092.0,0.002]
[1743170501955,0.246805,85087.0,85086.0,0.00013309]
[1743170502291,0.011752,85090.0,85086.0,0.00013309]
[1743170502498,0.235039,85092.0,85086.0,0.00013309]
[1743170502758,0.22446488,85102.0,85086.0,0.00013309]
[1743170502957,0.3,85105.0,85086.0,0.00013309]
[1743170503177,0.3,85107.0,85086.0,0.00013309]
[1743170503429,0.3,85107.0,85086.0,0.00113309]
[1743170503650,0.3,85107.0,85092.0,0.003]
[1743170504103,0.0003384,85109.0,85093.0,0.11425764]
[1743170504328,0.0003384,85109.0,85096.0,0.011751]
[1743170504515,0.0003384,85109.0,85093.0,0.12600864]
[1743170504516,0.0003384,85109.0,85098.0,0.3]
[1743170504713,0.0003384,85109.0,85100.0,0.3]
[1743170504908,0.0003384,85109.0,85101.0,0.25633764]
[1743170505134,0.0003384,85109.0,85102.0,0.00234946]
[1743170505338,0.004,85105.0,85103.0,0.41370649]
[1743170505568,0.0003384,85109.0,85108.0,0.011749]
[1743170505783,0.0003384,85140.0,85110.0,0.01454085]
[1743170505979,0.0003384,85140.0,85112.0,0.234984]
[1743170506178,0.0003384,85140.0,85113.0,0.11425764]
[1743170506389,0.0003384,85140.0,85114.0,0.234978]
[1743170506587,0.0003384,85140.0,85120.0,0.234961]
[1743170506788,0.0003384,85140.0,85121.0,0.2586867]
[1743170506994,0.0003384,85140.0,85121.0,0.49129364]
[1743170506995,0.0013384,85140.0,85121.0,0.49129364]
[1743170507191,0.00278248,85140.0,85121.0,0.25633764]
[1743170507391,0.00178248,85140.0,85122.0,0.234956]
[1743170507545,0.00178248,85140.0,85124.0,0.234951]
[1743170507914,0.00178248,85140.0,85125.0,0.14204]
[1743170508195,0.36661194,85140.0,85126.0,0.14204]
[1743170508432,0.00285276,85139.0,85127.0,0.14208]
[1743170508554,0.00078248,85140.0,85127.0,0.14208]
[1743170508748,0.00078248,85140.0,85128.0,0.142]
[1743170508959,0.11504012,85140.0,85111.0,0.02325968]
[1743170509161,0.00285276,85139.0,85112.0,0.11425764]
[1743170509366,0.36482946,85130.0,85113.0,0.142]
[1743170509582,0.36091564,85138.0,85113.0,0.142]
[1743170509793,0.11425764,85138.0,85113.0,0.142]
[1743170510648,0.24666,85137.0,85113.0,0.142]
[1743170510974,0.11425764,85136.0,85113.0,0.142]
[1743170511127,0.11425764,85136.0,85113.0,0.143]
[1743170511865,0.11425764,85136.0,85113.0,0.001]
[1743170512009,0.36482946,85130.0,85114.0,0.14168]
[1743170512211,0.11425764,85129.0,85113.0,0.001]
[1743170512412,0.234966,85119.0,85113.0,0.001]
[1743170512614,0.23497,85117.0,85113.0,0.001]
[1743170513439,0.23497,85117.0,85114.0,0.002]
[1743170513909,0.23497,85117.0,85107.0,0.14168]
[1743170513910,0.234973,85116.0,85113.0,0.001]
[1743170514025,0.23782576,85116.0,85113.0,0.001]
[1743170514233,0.246726,85114.0,85113.0,0.001]
[1743170514675,0.234992,85110.0,85105.0,0.14156]
[1743170515077,0.36098364,85114.0,85105.0,0.14156]
[1743170515394,0.23499,85110.0,85105.0,0.14156]
[1743170515539,0.234991,85110.0,85105.0,0.14156]
[1743170515934,0.234991,85110.0,85082.0,0.3]
[1743170515935,0.011749,85108.0,85082.0,0.3]
[1743170516197,0.011749,85109.0,85083.0,0.25561764]
[1743170516630,0.0009985,85110.0,85083.0,0.25561764]
[1743170516761,0.0009985,85110.0,85105.0,0.003]
[1743170517171,0.011748,85114.0,85105.0,0.003]
[1743170517172,0.3,85121.0,85105.0,0.003]
[1743170517451,0.40013346,85130.0,85105.0,0.003]
[1743170517452,0.0009949,85123.0,85105.0,0.003]
[1743170517637,0.0009949,85123.0,85106.0,0.11660754]
[1743170517784,0.0009949,85123.0,85106.0,0.11660706]
[1743170517982,0.0003384,85140.0,85109.0,0.2469082]
[1743170518206,0.0003384,85140.0,85110.0,0.11660693]
[1743170518417,0.0003384,85140.0,85110.0,0.11425764]
[1743170518418,0.011747,85127.0,85110.0,0.11425764]
[1743170518620,0.011748,85117.0,85109.0,0.0001692]
[1743170518824,0.36095264,85126.0,85110.0,0.1416]
[1743170519044,0.234948,85125.0,85110.0,0.1416]
[1743170519271,0.2359326,85127.0,85110.0,0.1416]
[1743170519383,0.2359326,85127.0,85111.0,0.11425764]
[1743170519384,0.0009886,85127.0,85111.0,0.11425764]
[1743170519594,0.0009886,85127.0,85112.0,0.55908]
[1743170519800,0.0009886,85127.0,85113.0,0.11425764]
[1743170520004,0.0003384,85140.0,85114.0,0.083]
[1743170520213,0.001,85125.0,85116.0,0.0464]
[1743170520412,0.001,85125.0,85112.0,0.55908]
[1743170520636,0.001,85125.0,85113.0,0.25585764]
[1743170521467,0.01252748,85140.0,85113.0,0.25585764]
[1743170521633,0.011745,85137.0,85113.0,0.25585764]
[1743170521840,0.011745,85136.0,85114.0,0.14168]
[1743170522130,0.011745,85138.0,85114.0,0.14168]
[1743170522338,0.011746,85134.0,85116.0,0.003]
[1743170522538,0.246667,85135.0,85117.0,0.1416]
[1743170522539,0.36482946,85130.0,85117.0,0.1416]
[1743170522744,0.4790871,85130.0,85117.0,0.1416]
[1743170523203,0.234941,85128.0,85117.0,0.1416]
[1743170523406,0.011746,85135.0,85117.0,0.1416]
[1743170523407,0.234927,85133.0,85117.0,0.1416]
[1743170523562,0.011746,85131.0,85117.0,0.1416]
[1743170523756,0.011746,85134.0,85117.0,0.1416]
[1743170523757,0.23493,85132.0,85117.0,0.1416]
[1743170523963,0.234937,85129.0,85117.0,0.1416]
[1743170524158,0.011747,85127.0,85117.0,0.1416]
[1743170524437,0.36482946,85130.0,85117.0,0.1416]
[1743170524724,0.234923,85134.0,85117.0,0.1416]
[1743170524917,0.36092664,85135.0,85117.0,0.1436]
[1743170524918,0.234946,85126.0,85117.0,0.1436]
[1743170525128,0.246712,85121.0,85117.0,0.004]
[1743170525302,0.011747,85123.0,85117.0,0.002]
[1743170525501,0.246715,85118.0,85117.0,0.002]
[1743170525706,0.41294972,85118.0,85117.0,0.003]
[1743170525907,0.71294972,85118.0,85117.0,0.003]
[1743170526158,0.66097264,85118.0,85117.0,0.004]
[1743170526395,0.429447,85121.0,85117.0,0.004]
[1743170526396,0.4177,85121.0,85117.0,0.004]
[1743170526505,0.225977,85140.0,85117.0,0.14548]
[1743170526710,0.246679,85131.0,85117.0,0.14548]
[1743170527019,0.36094064,85130.0,85117.0,0.14548]
[1743170527228,0.234944,85127.0,85117.0,0.14148]
[1743170527423,0.011747,85128.0,85118.0,0.14152]
[1743170527625,0.011746,85130.0,85118.0,0.14152]
[1743170527626,0.234935,85130.0,85118.0,0.14152]
[1743170527824,0.23494,85128.0,85118.0,0.14152]
[1743170528348,0.24669,85127.0,85118.0,0.14152]
[1743170528584,0.24669,85127.0,85117.0,0.002]
[1743170528585,0.246715,85118.0,85117.0,0.004]
[1743170528779,0.36097264,85118.0,85117.0,0.002]
[1743170529102,0.36097264,85118.0,85109.0,0.0001692]
[1743170529103,0.246739,85110.0,85109.0,0.0001692]
[1743170529313,0.234986,85112.0,85109.0,0.0001692]
[1743170529513,0.246739,85110.0,85109.0,0.0001692]
[1743170529866,0.234979,85114.0,85109.0,0.0001692]
[1743170530073,0.27059836,85118.0,85117.0,0.001]
[1743170530074,0.02388336,85118.0,85117.0,0.001]
[1743170530274,0.384857,85118.0,85117.0,0.001]
[1743170531708,0.384857,85118.0,85117.0,0.002]
[1743170532109,0.384857,85118.0,85117.0,0.001]
[1743170533323,0.25885136,85118.0,85117.0,0.002]
[1743170533566,0.27059936,85118.0,85117.0,0.002]
[1743170533830,0.429447,85126.0,85117.0,0.002]
[1743170534030,0.234966,85119.0,85117.0,0.002]
[1743170534245,0.24956776,85118.0,85117.0,0.002]
[1743170534459,0.246715,85118.0,85117.0,0.002]
[1743170534819,0.36097264,85118.0,85117.0,0.002]
[1743170535087,1.20613729,85118.0,85117.0,0.002]
[1743170535222,1.25583729,85118.0,85117.0,0.002]
[1743170535623,1.22451349,85118.0,85117.0,0.002]
[1743170536465,1.22451349,85118.0,85117.0,0.001]
[1743170537260,0.91355764,85118.0,85117.0,0.001]
[1743170537463,0.91355764,85118.0,85109.0,0.0001692]
[1743170537464,0.3,85117.0,85109.0,0.0001692]
[1743170537759,0.3,85115.0,85109.0,0.0001692]
[1743170538685,0.4197,85118.0,85110.0,0.14136]
[1743170538910,0.4227,85118.0,85110.0,0.14136]
[1743170539159,0.4207,85118.0,85110.0,0.14136]
[1743170539411,0.011748,85119.0,85110.0,0.14136]
[1743170539640,0.234977,85115.0,85111.0,0.14124]
[1743170539856,0.246733,85112.0,85111.0,0.14124]
[1743170540086,0.246728,85114.0,85111.0,0.14124]
[1743170540325,0.23499,85111.0,85109.0,0.0001692]
[1743170540552,0.246739,85110.0,85109.0,0.0001692]
[1743170541005,0.23499,85110.0,85109.0,0.0001692]
[1743170541431,0.11425764,85110.0,85109.0,0.0001692]
[1743170541433,0.22419472,85120.0,85109.0,0.0001692]
[1743170541671,0.234978,85115.0,85109.0,0.0001692]
[1743170541910,0.2589874,85126.0,85109.0,0.0001692]
[1743170542147,0.234933,85131.0,85109.0,0.0011692]
[1743170542382,0.0127466,85127.0,85110.0,0.11425764]
[1743170542630,0.0127466,85127.0,85109.0,0.0001692]
[1743170542631,0.011747,85123.0,85109.0,0.0001692]
[1743170542841,0.234938,85129.0,85109.0,0.0001692]
[1743170542842,0.246733,85112.0,85111.0,0.14128]
[1743170543116,0.23499,85110.0,85109.0,0.0001692]
[1743170543373,0.246739,85110.0,85109.0,0.0001692]
[1743170544902,0.36099664,85110.0,85109.0,0.0001692]
[1743170545332,0.36099664,85110.0,85109.0,0.0031692]
[1743170545536,0.37245621,85110.0,85109.0,0.0031692]
[1743170545782,0.37245621,85110.0,85109.0,0.0011692]
[1743170546315,0.37345621,85110.0,85109.0,0.0011692]
[1743170546488,0.37345621,85110.0,85109.0,0.0001692]
[1743170548598,0.67345621,85110.0,85109.0,0.0001692]
[1743170549283,0.001,85110.0,85109.0,0.0001692]
[1743170549572,0.547739,85110.0,85109.0,0.0001692]
[1743170549776,0.001,85110.0,85109.0,0.0001692]
[1743170551476,0.247739,85110.0,85109.0,0.0001692]
[1743170551681,0.36199664,85110.0,85109.0,0.0001692]
[1743170552092,0.36099664,85110.0,85109.0,0.0001692]
[1743170552301,0.36099664,85110.0,85109.0,0.0031692]
[1743170552481,0.36099664,85110.0,85109.0,0.0061692]
[1743170552675,0.234987,85111.0,85109.0,0.0031692]
[1743170552873,0.534984,85112.0,85109.0,0.0001692]
[1743170553071,0.011749,85111.0,85109.0,0.0001692]
[1743170553342,0.23499,85110.0,85109.0,0.0001692]
[1743170553461,0.246739,85110.0,85109.0,0.0001692]
[1743170554100,0.246736,85111.0,85109.0,0.0001692]
[1743170554101,0.001,85111.0,85109.0,0.0001692]
[1743170555099,0.0003384,85118.0,85109.0,0.0001692]
[1743170556520,0.0003384,85118.0,85109.0,0.0011692]
[1743170556772,0.0003384,85118.0,85109.0,0.0031692]
[1743170558153,0.0003384,85118.0,85110.0,0.11425764]
[1743170559128,0.0003384,85118.0,85111.0,0.14084]
[1743170559529,0.0003384,85118.0,85112.0,0.11425764]
[1743170559683,0.0003384,85118.0,85112.0,0.11660712]
[1743170559885,0.0003384,85118.0,85117.0,0.295418]
[1743170560143,0.0003384,85118.0,85117.0,0.40967564]
[1743170560313,0.0003384,85118.0,85117.0,0.85429864]
[1743170560516,0.0003384,85118.0,85117.0,0.57663864]
[1743170560769,0.0003384,85118.0,85117.0,0.48249849]
[1743170560982,0.0003384,85118.0,85117.0,0.72921649]
[1743170561156,0.0003384,85118.0,85117.0,0.73321649]
[1743170561317,0.0003384,85118.0,85117.0,1.58438349]
[1743170561715,0.0003384,85118.0,85117.0,0.98847649]
[1743170562186,0.0003384,85118.0,85117.0,0.64239249]
[1743170562298,0.0003384,85118.0,85117.0,0.61371764]
[1743170562497,0.0003384,85118.0,85117.0,0.62546564]
[1743170562843,0.0003384,85118.0,85117.0,0.62925849]
[1743170563046,0.0003384,85118.0,85117.0,1.01274849]
[1743170563261,0.0003384,85118.0,85117.0,0.77777849]
[1743170563465,0.0003384,85118.0,85117.0,1.02449649]
[1743170564606,0.0003384,85118.0,85117.0,1.01849649]
[1743170564854,0.0003384,85118.0,85117.0,1.04349649]
[1743170565089,0.0003384,85118.0,85117.0,1.04949649]
[1743170566079,0.0003384,85118.0,85117.0,0.75831764]
[1743170566281,0.0003384,85118.0,85117.0,0.61579764]
[1743170566509,0.0003384,85118.0,85117.0,0.60979764]
[1743170566714,0.0003384,85118.0,85117.0,0.63479764]
[1743170566921,0.0003384,85118.0,85117.0,0.88751564]
[1743170567120,0.0003384,85118.0,85117.0,1.46101649]
[1743170567329,0.0003384,85118.0,85117.0,2.65728449]
[1743170567521,0.0003384,85118.0,85117.0,2.48512849]
[1743170567929,0.0003384,85118.0,85117.0,2.46972349]
[1743170571198,0.00099,85158.0,85137.0,0.234915]
[1743170571373,0.00078248,85138.0,85137.0,2.13165849]
[1743170571592,0.00078248,85138.0,85137.0,2.19989949]
[1743170571798,0.00078248,85138.0,85137.0,2.11279049]
[1743170572163,0.00078248,85138.0,85137.0,1.16823349]
[1743170572364,0.00078248,85138.0,85137.0,1.14323349]
[1743170572674,0.00078248,85138.0,85137.0,1.17923349]
[1743170572846,0.00078248,85138.0,85137.0,1.42589349]
[1743170573051,0.00078248,85138.0,85137.0,1.17923349]
[1743170573267,0.00078248,85138.0,85137.0,1.04271354]
[1743170573484,0.00078248,85138.0,85137.0,0.87515554]
[1743170573686,0.00078248,85138.0,85137.0,1.11007054]
[1743170574092,0.00078248,85138.0,85137.0,1.11607054]
[1743170574320,0.00078248,85138.0,85137.0,0.98339854]
[1743170574738,0.00078248,85138.0,85137.0,2.11208154]
[1743170575152,0.00078248,85138.0,85137.0,2.11200154]
[1743170575425,0.0009816,85173.0,85137.0,2.11200154]
[1743170575426,0.0009816,85173.0,85146.0,0.016744]
[1743170575652,0.00213318,85169.0,85150.0,0.01454085]
[1743170575807,0.00213318,85169.0,85151.0,0.96128564]
[1743170576168,0.00213318,85169.0,85164.0,0.011742]
[1743170576390,0.00213318,85169.0,85158.0,0.011742]
[1743170576391,0.00213318,85169.0,85165.0,0.11425764]
[1743170577992,0.00213318,85169.0,85165.0,0.11825764]
[1743170578212,0.00213318,85169.0,85165.0,0.12225764]
[1743170578445,0.00213318,85169.0,85168.0,0.234829]
[1743170578671,0.00213318,85169.0,85168.0,0.26879849]
[1743170580171,0.00213318,85169.0,85168.0,0.27279849]
[1743170580419,0.00213318,85169.0,85168.0,0.50762749]
[1743170580592,0.00213318,85169.0,85168.0,0.27679849]
[1743170581343,0.00213318,85169.0,85168.0,0.44151049]
[1743170581578,0.00213318,85169.0,85168.0,0.26209764]
[1743170581817,0.00213318,85169.0,85168.0,0.26213764]
[1743170582068,0.00213318,85169.0,85168.0,0.008]
[1743170582302,0.00213318,85169.0,85168.0,0.14792]
[1743170584785,0.00213318,85169.0,85168.0,0.008]
[1743170584985,0.00213318,85169.0,85168.0,0.14788]
[1743170585798,0.00213318,85169.0,85168.0,0.004]
[1743170586017,0.00213318,85169.0,85168.0,0.14384]
[1743170586389,0.00213318,85169.0,85168.0,0.14584]
[1743170586865,0.23696018,85169.0,85168.0,0.006]
[1743170587039,0.24870118,85169.0,85168.0,0.006]
[1743170587281,0.23696018,85169.0,85168.0,0.002]
[1743170587491,0.00213318,85169.0,85168.0,0.005]
[1743170587917,0.23696018,85169.0,85168.0,0.005]
[1743170588130,0.24870118,85169.0,85168.0,0.005]
[1743170588335,0.00213318,85169.0,85168.0,0.002]
[1743170588792,0.00213318,85169.0,85168.0,0.14356]
[1743170589044,0.00213318,85169.0,85168.0,0.14156]
[1743170589273,0.00230238,85169.0,85168.0,0.14156]
[1743170589528,0.00230238,85169.0,85168.0,0.14356]
[1743170590012,0.00230238,85169.0,85168.0,0.14156]
[1743170590254,0.00230238,85169.0,85168.0,0.14356]
[1743170590515,0.00230238,85169.0,85168.0,0.14156]
[1743170591196,0.00230238,85169.0,85168.0,0.14356]
[1743170591602,0.00230238,85169.0,85168.0,0.25781764]
[1743170592549,0.00230238,85169.0,85168.0,0.25581764]
[1743170592756,0.00230238,85169.0,85168.0,0.49464664]
[1743170592971,0.00230238,85169.0,85168.0,0.25981764]
[1743170593356,0.00230238,85169.0,85168.0,3.43282949]
[1743170593509,0.00230238,85169.0,85168.0,1.53455949]
[1743170594037,0.00230238,85169.0,85168.0,1.04735549]
[1743170594241,0.00230238,85169.0,85168.0,0.54943949]
[1743170594485,0.00230238,85169.0,85168.0,0.80325449]
[1743170594689,0.00230238,85169.0,85168.0,0.58477764]
[1743170595259,0.00230238,85169.0,85168.0,0.55977764]
[1743170595458,0.00230238,85169.0,85168.0,0.42425764]
[1743170595815,0.00230238,85169.0,85168.0,0.56373764]
[1743170596035,0.00230238,85169.0,85168.0,0.12425764]
[1743170596239,0.00230238,85169.0,85168.0,0.14948]
[1743170596401,0.00230238,85169.0,85168.0,0.14548]
[1743170596812,0.00230238,85169.0,85168.0,0.006]
[1743170596970,0.00230238,85169.0,85168.0,0.012]
[1743170597175,0.00230238,85169.0,85168.0,0.15148]
[1743170597572,0.00230238,85169.0,85168.0,0.26573764]
[1743170597802,0.00230238,85169.0,85168.0,0.006]
[1743170597999,0.00230238,85169.0,85168.0,0.14548]
[1743170598203,0.00230238,85169.0,85168.0,0.15148]
[1743170598428,0.00230238,85169.0,85168.0,0.13948]
[1743170598841,0.00230238,85169.0,85168.0,0.012]
[1743170599045,0.24887038,85169.0,85168.0,0.012]
[1743170599211,0.32437038,85169.0,85168.0,0.006]
[1743170599620,0.78742802,85169.0,85168.0,0.012]
[1743170599853,0.8229249,85169.0,85168.0,0.012]
[1743170600205,0.8229249,85169.0,85168.0,0.006]
[1743170600329,0.8229249,85169.0,85168.0,0.011]
[1743170600731,0.83173418,85169.0,85168.0,0.011]
[1743170601004,0.83173418,85169.0,85168.0,0.005]
[1743170601410,0.84980576,85169.0,85168.0,0.01]
[1743170601529,0.84980576,85169.0,85168.0,0.005]
[1743170601730,0.234877,85151.0,85144.0,0.13948]
[1743170601974,0.0828,85152.0,85144.0,0.13948]
[1743170602405,0.011743,85151.0,85144.0,0.13948]
[1743170602564,0.0828,85152.0,85142.0,0.13948]
[1743170603616,0.0828,85152.0,85144.0,0.002]
[1743170603831,0.0764,85161.0,85145.0,0.00234879]
[1743170604006,0.0764,85161.0,85144.0,0.002]
[1743170604007,0.0764,85161.0,85144.0,0.11625764]
[1743170604986,0.311249,85161.0,85144.0,0.11825764]
[1743170605188,0.23486,85157.0,85144.0,0.11825764]
[1743170605400,0.311249,85161.0,85144.0,0.11825764]
[1743170605401,0.0764,85161.0,85144.0,0.11625764]
[1743170605599,0.23486,85157.0,85144.0,0.11625764]
[1743170605836,0.234867,85155.0,85144.0,0.11625764]
[1743170606042,0.011743,85156.0,85144.0,0.11625764]
[1743170606043,0.246606,85156.0,85144.0,0.11625764]
[1743170606247,0.0764,85161.0,85144.0,0.11625764]
[1743170606675,0.22419472,85160.0,85144.0,0.002]
[1743170606887,0.246635,85146.0,85145.0,0.13972]
[1743170607109,0.011743,85151.0,85144.0,0.002]
[1743170607338,0.246637,85145.0,85144.0,0.002]
[1743170607765,0.011744,85147.0,85138.0,0.0003384]
[1743170607940,0.234896,85144.0,85138.0,0.0003384]
[1743170608526,0.086945,85139.0,85138.0,0.0003384]
[1743170608965,0.08979776,85139.0,85138.0,0.0003384]
[1743170609181,0.386945,85139.0,85138.0,0.0003384]
[1743170609399,0.58146202,85139.0,85138.0,0.0003384]
[1743170609744,0.51265991,85139.0,85138.0,0.0033384]
[1743170609966,0.51279301,85139.0,85138.0,0.0063384]
[1743170610220,0.95386157,85139.0,85138.0,0.0063384]
[1743170610464,0.95386157,85139.0,85138.0,0.0033384]
[1743170610662,0.95386157,85139.0,85114.0,0.5588]
[1743170610663,0.011749,85110.0,85109.0,0.0001692]
[1743170611520,0.4771594,85110.0,85109.0,0.0001692]
[1743170611724,0.47430664,85110.0,85109.0,0.0001692]
[1743170612051,0.47430664,85110.0,85109.0,0.00061328]
[1743170612416,0.47430664,85110.0,85109.0,0.00361328]
[1743170612607,0.47430664,85110.0,85109.0,0.00061328]
[1743170614940,0.3,85110.0,85109.0,0.00061328]
[1743170615148,0.311749,85110.0,85109.0,0.00061328]
[1743170615714,0.42600664,85110.0,85109.0,0.00061328]
[1743170615985,0.88177631,85110.0,85109.0,0.00061328]
[1743170616202,0.88177631,85110.0,85109.0,0.00161328]
[1743170616376,1.07623395,85110.0,85109.0,0.00161328]
[1743170616720,1.07623395,85110.0,85109.0,0.00061328]
[1743170617183,0.96197631,85110.0,85109.0,0.00161328]
[1743170617561,1.08074043,85110.0,85109.0,0.00161328]
[1743170617994,1.00807631,85110.0,85109.0,0.00161328]
[1743170618192,1.0448082,85110.0,85109.0,0.00161328]
[1743170618400,1.08074043,85110.0,85109.0,0.00161328]
[1743170618767,1.19499807,85110.0,85109.0,0.00061328]
[1743170618976,1.12233395,85110.0,85109.0,0.00061328]
[1743170619181,1.12333395,85110.0,85109.0,0.00061328]
[1743170619352,1.12733395,85110.0,85109.0,0.00061328]
[1743170619908,1.13033395,85110.0,85109.0,0.00061328]
[1743170620131,1.13033395,85110.0,85109.0,2.8e-07]
[1743170620343,1.13033395,85110.0,85074.0,0.55892]
[1743170620344,0.24684,85075.0,85074.0,0.55892]
[1743170620530,0.011754,85075.0,85074.0,0.55905309]
[1743170621220,0.011754,85075.0,85074.0,0.00013309]
[1743170621428,0.12601164,85075.0,85074.0,0.00013309]
[1743170621556,0.42601164,85075.0,85074.0,0.00613309]
[1743170621771,0.9761321,85075.0,85074.0,0.00613309]
[1743170622000,1.07177295,85075.0,85074.0,0.00613309]
[1743170622344,1.07177295,85075.0,85074.0,0.00013309]
[1743170622548,1.07177295,85075.0,85074.0,0.00313309]
[1743170622773,1.07177295,85075.0,85074.0,9e-08]
[1743170622774,1.12587295,85075.0,85074.0,9e-08]
[1743170622979,0.546855,85070.0,85054.0,0.0001693]
[1743170623184,1.01559113,85070.0,85069.0,3e-07]
[1743170623890,1.07652336,85070.0,85069.0,3e-07]
[1743170624124,1.04059113,85070.0,85069.0,3e-07]
[1743170624560,1.04459113,85070.0,85069.0,3e-07]
[1743170624711,1.05552336,85070.0,85069.0,3e-07]
[1743170624928,0.76005349,85070.0,85069.0,3e-07]
[1743170625333,0.76405349,85070.0,85069.0,3e-07]
[1743170626143,0.76005349,85070.0,85069.0,3e-07]
[1743170626345,0.75605349,85070.0,85069.0,3e-07]
[1743170626677,0.87731113,85070.0,85069.0,3e-07]
[1743170627283,1.29501113,85070.0,85069.0,3e-07]
[1743170627606,1.28047028,85070.0,85069.0,3e-07]
[1743170627807,1.16621264,85070.0,85069.0,3e-07]
[1743170628707,1.17092264,85070.0,85069.0,3e-07]
[1743170630291,1.13482264,85070.0,85069.0,3e-07]
[1743170630716,1.16111849,85070.0,85069.0,3e-07]
[1743170635025,1.16611849,85070.0,85069.0,3e-07]
[1743170635225,0.546878,85062.0,85061.0,5e-07]
[1743170635426,0.67567649,85062.0,85061.0,5e-07]
[1743170637059,0.67667649,85062.0,85061.0,5e-07]
[1743170637952,0.67867649,85062.0,85061.0,5e-07]